Workbook

Sheet Sheet1
C1: As of: | E1: Cash Balance History | F1: Debt History | G1: Net of Cash and Debt | H1: As of:
B2: Equity | C2: =NOW() -> 2011-12-08T22:26:14.540 | E2: 1234.69 | F2: 5200 | G2: =E2-F2 -> -3965.31 | H2: 2011-12-08T16:41:30.400
B3: Wells Fargo Checking Account Balance | C3: 1234.69 | E3: 1234.69 | F3: 5199.53 | G3: =E3-F3 -> -3964.84 | H3: 2011-12-08T19:59:24.460
B4: Debt | E4: 1234.69 | F4: 5199.53 | G4: =E4-F4 -> -3964.84 | H4: 2011-12-08T22:26:12.420
B5: AAA CC Balance | C5: 4473.77
B6: Wescom CC Balance | C6: 725.76
B7: Total | C7: =SUM(C5:C6) -> 5199.53
A9: Date of Pay Off*: | B9: 2029-08-08
A10: Months to Pay Off*: | B10: 213
A11: *Assuming Minimum Payments
A12: Debt Pay Off Schedule: | B12: AAA CC | C12: Wescom CC
A13: 2011-12-08 | B13: =IF(((C5*0.39)/12)>25,(C5+((C5*0.26)/12))-((C5*0.39)/12),(C5+((C5*0.26)/12))-25) -> 4425.304158 | C13: =IF(((C6*0.39)/12)>25,(C6+((C6*0.26)/12))-((C6*0.39)/12),(C6+((C6*0.26)/12))-25) -> 716.4848
A14: 2012-01-08 | B14: =IF(((B13*0.39)/12)>25,(B13+((B13*0.26)/12))-((B13*0.39)/12),(B13+((B13*0.26)/12))-25) -> 4377.363363 | C14: =IF(((C13*0.39)/12)>25,(C13+((C13*0.26)/12))-((C13*0.39)/12),(C13+((C13*0.26)/12))-25) -> 707.0086373
A15: 2012-02-08 | B15: =IF(((B14*0.39)/12)>25,(B14+((B14*0.26)/12))-((B14*0.39)/12),(B14+((B14*0.26)/12))-25) -> 4329.941927 | C15: =IF(((C14*0.39)/12)>25,(C14+((C14*0.26)/12))-((C14*0.39)/12),(C14+((C14*0.26)/12))-25) -> 697.3271578
A16: 2012-03-08 | B16: =IF(((B15*0.39)/12)>25,(B15+((B15*0.26)/12))-((B15*0.39)/12),(B15+((B15*0.26)/12))-25) -> 4283.034223 | C16: =IF(((C15*0.39)/12)>25,(C15+((C15*0.26)/12))-((C15*0.39)/12),(C15+((C15*0.26)/12))-25) -> 687.4359129
A17: 2012-04-08 | B17: =IF(((B16*0.39)/12)>25,(B16+((B16*0.26)/12))-((B16*0.39)/12),(B16+((B16*0.26)/12))-25) -> 4236.634685 | C17: =IF(((C16*0.39)/12)>25,(C16+((C16*0.26)/12))-((C16*0.39)/12),(C16+((C16*0.26)/12))-25) -> 677.3303577
A18: 2012-05-08 | B18: =IF(((B17*0.39)/12)>25,(B17+((B17*0.26)/12))-((B17*0.39)/12),(B17+((B17*0.26)/12))-25) -> 4190.737809 | C18: =IF(((C17*0.39)/12)>25,(C17+((C17*0.26)/12))-((C17*0.39)/12),(C17+((C17*0.26)/12))-25) -> 667.0058488
A19: 2012-06-08 | B19: =IF(((B18*0.39)/12)>25,(B18+((B18*0.26)/12))-((B18*0.39)/12),(B18+((B18*0.26)/12))-25) -> 4145.33815 | C19: =IF(((C18*0.39)/12)>25,(C18+((C18*0.26)/12))-((C18*0.39)/12),(C18+((C18*0.26)/12))-25) -> 656.4576421
A20: 2012-07-08 | B20: =IF(((B19*0.39)/12)>25,(B19+((B19*0.26)/12))-((B19*0.39)/12),(B19+((B19*0.26)/12))-25) -> 4100.43032 | C20: =IF(((C19*0.39)/12)>25,(C19+((C19*0.26)/12))-((C19*0.39)/12),(C19+((C19*0.26)/12))-25) -> 645.6808911
A21: 2012-08-08 | B21: =IF(((B20*0.39)/12)>25,(B20+((B20*0.26)/12))-((B20*0.39)/12),(B20+((B20*0.26)/12))-25) -> 4056.008991 | C21: =IF(((C20*0.39)/12)>25,(C20+((C20*0.26)/12))-((C20*0.39)/12),(C20+((C20*0.26)/12))-25) -> 634.6706437
A22: 2012-09-08 | B22: =IF(((B21*0.39)/12)>25,(B21+((B21*0.26)/12))-((B21*0.39)/12),(B21+((B21*0.26)/12))-25) -> 4012.068894 | C22: =IF(((C21*0.39)/12)>25,(C21+((C21*0.26)/12))-((C21*0.39)/12),(C21+((C21*0.26)/12))-25) -> 623.421841
A23: 2012-10-08 | B23: =IF(((B22*0.39)/12)>25,(B22+((B22*0.26)/12))-((B22*0.39)/12),(B22+((B22*0.26)/12))-25) -> 3968.604814 | C23: =IF(((C22*0.39)/12)>25,(C22+((C22*0.26)/12))-((C22*0.39)/12),(C22+((C22*0.26)/12))-25) -> 611.9293142
A24: 2012-11-08 | B24: =IF(((B23*0.39)/12)>25,(B23+((B23*0.26)/12))-((B23*0.39)/12),(B23+((B23*0.26)/12))-25) -> 3925.611596 | C24: =IF(((C23*0.39)/12)>25,(C23+((C23*0.26)/12))-((C23*0.39)/12),(C23+((C23*0.26)/12))-25) -> 600.1877827
A25: 2012-12-08 | B25: =IF(((B24*0.39)/12)>25,(B24+((B24*0.26)/12))-((B24*0.39)/12),(B24+((B24*0.26)/12))-25) -> 3883.084137 | C25: =IF(((C24*0.39)/12)>25,(C24+((C24*0.26)/12))-((C24*0.39)/12),(C24+((C24*0.26)/12))-25) -> 588.1918513
A26: 2013-01-08 | B26: =IF(((B25*0.39)/12)>25,(B25+((B25*0.26)/12))-((B25*0.39)/12),(B25+((B25*0.26)/12))-25) -> 3841.017392 | C26: =IF(((C25*0.39)/12)>25,(C25+((C25*0.26)/12))-((C25*0.39)/12),(C25+((C25*0.26)/12))-25) -> 575.9360081
A27: 2013-02-08 | B27: =IF(((B26*0.39)/12)>25,(B26+((B26*0.26)/12))-((B26*0.39)/12),(B26+((B26*0.26)/12))-25) -> 3799.40637 | C27: =IF(((C26*0.39)/12)>25,(C26+((C26*0.26)/12))-((C26*0.39)/12),(C26+((C26*0.26)/12))-25) -> 563.4146216
A28: 2013-03-08 | B28: =IF(((B27*0.39)/12)>25,(B27+((B27*0.26)/12))-((B27*0.39)/12),(B27+((B27*0.26)/12))-25) -> 3758.246134 | C28: =IF(((C27*0.39)/12)>25,(C27+((C27*0.26)/12))-((C27*0.39)/12),(C27+((C27*0.26)/12))-25) -> 550.6219384
A29: 2013-04-08 | B29: =IF(((B28*0.39)/12)>25,(B28+((B28*0.26)/12))-((B28*0.39)/12),(B28+((B28*0.26)/12))-25) -> 3717.531801 | C29: =IF(((C28*0.39)/12)>25,(C28+((C28*0.26)/12))-((C28*0.39)/12),(C28+((C28*0.26)/12))-25) -> 537.5520804
A30: 2013-05-08 | B30: =IF(((B29*0.39)/12)>25,(B29+((B29*0.26)/12))-((B29*0.39)/12),(B29+((B29*0.26)/12))-25) -> 3677.25854 | C30: =IF(((C29*0.39)/12)>25,(C29+((C29*0.26)/12))-((C29*0.39)/12),(C29+((C29*0.26)/12))-25) -> 524.1990421
A31: 2013-06-08 | B31: =IF(((B30*0.39)/12)>25,(B30+((B30*0.26)/12))-((B30*0.39)/12),(B30+((B30*0.26)/12))-25) -> 3637.421573 | C31: =IF(((C30*0.39)/12)>25,(C30+((C30*0.26)/12))-((C30*0.39)/12),(C30+((C30*0.26)/12))-25) -> 510.556688
A32: 2013-07-08 | B32: =IF(((B31*0.39)/12)>25,(B31+((B31*0.26)/12))-((B31*0.39)/12),(B31+((B31*0.26)/12))-25) -> 3598.016172 | C32: =IF(((C31*0.39)/12)>25,(C31+((C31*0.26)/12))-((C31*0.39)/12),(C31+((C31*0.26)/12))-25) -> 496.6187496
A33: 2013-08-08 | B33: =IF(((B32*0.39)/12)>25,(B32+((B32*0.26)/12))-((B32*0.39)/12),(B32+((B32*0.26)/12))-25) -> 3559.037664 | C33: =IF(((C32*0.39)/12)>25,(C32+((C32*0.26)/12))-((C32*0.39)/12),(C32+((C32*0.26)/12))-25) -> 482.3788225
A34: 2013-09-08 | B34: =IF(((B33*0.39)/12)>25,(B33+((B33*0.26)/12))-((B33*0.39)/12),(B33+((B33*0.26)/12))-25) -> 3520.481422 | C34: =IF(((C33*0.39)/12)>25,(C33+((C33*0.26)/12))-((C33*0.39)/12),(C33+((C33*0.26)/12))-25) -> 467.8303637
A35: 2013-10-08 | B35: =IF(((B34*0.39)/12)>25,(B34+((B34*0.26)/12))-((B34*0.39)/12),(B34+((B34*0.26)/12))-25) -> 3482.342874 | C35: =IF(((C34*0.39)/12)>25,(C34+((C34*0.26)/12))-((C34*0.39)/12),(C34+((C34*0.26)/12))-25) -> 452.9666882
A36: 2013-11-08 | B36: =IF(((B35*0.39)/12)>25,(B35+((B35*0.26)/12))-((B35*0.39)/12),(B35+((B35*0.26)/12))-25) -> 3444.617492 | C36: =IF(((C35*0.39)/12)>25,(C35+((C35*0.26)/12))-((C35*0.39)/12),(C35+((C35*0.26)/12))-25) -> 437.7809665
A37: 2013-12-08 | B37: =IF(((B36*0.39)/12)>25,(B36+((B36*0.26)/12))-((B36*0.39)/12),(B36+((B36*0.26)/12))-25) -> 3407.300803 | C37: =IF(((C36*0.39)/12)>25,(C36+((C36*0.26)/12))-((C36*0.39)/12),(C36+((C36*0.26)/12))-25) -> 422.2662207
A38: 2014-01-08 | B38: =IF(((B37*0.39)/12)>25,(B37+((B37*0.26)/12))-((B37*0.39)/12),(B37+((B37*0.26)/12))-25) -> 3370.388378 | C38: =IF(((C37*0.39)/12)>25,(C37+((C37*0.26)/12))-((C37*0.39)/12),(C37+((C37*0.26)/12))-25) -> 406.4153222
A39: 2014-02-08 | B39: =IF(((B38*0.39)/12)>25,(B38+((B38*0.26)/12))-((B38*0.39)/12),(B38+((B38*0.26)/12))-25) -> 3333.875837 | C39: =IF(((C38*0.39)/12)>25,(C38+((C38*0.26)/12))-((C38*0.39)/12),(C38+((C38*0.26)/12))-25) -> 390.2209875
A40: 2014-03-08 | B40: =IF(((B39*0.39)/12)>25,(B39+((B39*0.26)/12))-((B39*0.39)/12),(B39+((B39*0.26)/12))-25) -> 3297.758849 | C40: =IF(((C39*0.39)/12)>25,(C39+((C39*0.26)/12))-((C39*0.39)/12),(C39+((C39*0.26)/12))-25) -> 373.6757756
A41: 2014-04-08 | B41: =IF(((B40*0.39)/12)>25,(B40+((B40*0.26)/12))-((B40*0.39)/12),(B40+((B40*0.26)/12))-25) -> 3262.033128 | C41: =IF(((C40*0.39)/12)>25,(C40+((C40*0.26)/12))-((C40*0.39)/12),(C40+((C40*0.26)/12))-25) -> 356.772084
A42: 2014-05-08 | B42: =IF(((B41*0.39)/12)>25,(B41+((B41*0.26)/12))-((B41*0.39)/12),(B41+((B41*0.26)/12))-25) -> 3226.694435 | C42: =IF(((C41*0.39)/12)>25,(C41+((C41*0.26)/12))-((C41*0.39)/12),(C41+((C41*0.26)/12))-25) -> 339.5021459
A43: 2014-06-08 | B43: =IF(((B42*0.39)/12)>25,(B42+((B42*0.26)/12))-((B42*0.39)/12),(B42+((B42*0.26)/12))-25) -> 3191.738579 | C43: =IF(((C42*0.39)/12)>25,(C42+((C42*0.26)/12))-((C42*0.39)/12),(C42+((C42*0.26)/12))-25) -> 321.8580257
A44: 2014-07-08 | B44: =IF(((B43*0.39)/12)>25,(B43+((B43*0.26)/12))-((B43*0.39)/12),(B43+((B43*0.26)/12))-25) -> 3157.161411 | C44: =IF(((C43*0.39)/12)>25,(C43+((C43*0.26)/12))-((C43*0.39)/12),(C43+((C43*0.26)/12))-25) -> 303.8316162
A45: 2014-08-08 | B45: =IF(((B44*0.39)/12)>25,(B44+((B44*0.26)/12))-((B44*0.39)/12),(B44+((B44*0.26)/12))-25) -> 3122.958829 | C45: =IF(((C44*0.39)/12)>25,(C44+((C44*0.26)/12))-((C44*0.39)/12),(C44+((C44*0.26)/12))-25) -> 285.4146346
A46: 2014-09-08 | B46: =IF(((B45*0.39)/12)>25,(B45+((B45*0.26)/12))-((B45*0.39)/12),(B45+((B45*0.26)/12))-25) -> 3089.126775 | C46: =IF(((C45*0.39)/12)>25,(C45+((C45*0.26)/12))-((C45*0.39)/12),(C45+((C45*0.26)/12))-25) -> 266.5986183
A47: 2014-10-08 | B47: =IF(((B46*0.39)/12)>25,(B46+((B46*0.26)/12))-((B46*0.39)/12),(B46+((B46*0.26)/12))-25) -> 3055.661235 | C47: =IF(((C46*0.39)/12)>25,(C46+((C46*0.26)/12))-((C46*0.39)/12),(C46+((C46*0.26)/12))-25) -> 247.3749217
A48: 2014-11-08 | B48: =IF(((B47*0.39)/12)>25,(B47+((B47*0.26)/12))-((B47*0.39)/12),(B47+((B47*0.26)/12))-25) -> 3022.558238 | C48: =IF(((C47*0.39)/12)>25,(C47+((C47*0.26)/12))-((C47*0.39)/12),(C47+((C47*0.26)/12))-25) -> 227.7347117
A49: 2014-12-08 | B49: =IF(((B48*0.39)/12)>25,(B48+((B48*0.26)/12))-((B48*0.39)/12),(B48+((B48*0.26)/12))-25) -> 2989.813858 | C49: =IF(((C48*0.39)/12)>25,(C48+((C48*0.26)/12))-((C48*0.39)/12),(C48+((C48*0.26)/12))-25) -> 207.6689638
A50: 2015-01-08 | B50: =IF(((B49*0.39)/12)>25,(B49+((B49*0.26)/12))-((B49*0.39)/12),(B49+((B49*0.26)/12))-25) -> 2957.424207 | C50: =IF(((C49*0.39)/12)>25,(C49+((C49*0.26)/12))-((C49*0.39)/12),(C49+((C49*0.26)/12))-25) -> 187.168458
A51: 2015-02-08 | B51: =IF(((B50*0.39)/12)>25,(B50+((B50*0.26)/12))-((B50*0.39)/12),(B50+((B50*0.26)/12))-25) -> 2925.385445 | C51: =IF(((C50*0.39)/12)>25,(C50+((C50*0.26)/12))-((C50*0.39)/12),(C50+((C50*0.26)/12))-25) -> 166.2237746
A52: 2015-03-08 | B52: =IF(((B51*0.39)/12)>25,(B51+((B51*0.26)/12))-((B51*0.39)/12),(B51+((B51*0.26)/12))-25) -> 2893.693769 | C52: =IF(((C51*0.39)/12)>25,(C51+((C51*0.26)/12))-((C51*0.39)/12),(C51+((C51*0.26)/12))-25) -> 144.8252897
A53: 2015-04-08 | B53: =IF(((B52*0.39)/12)>25,(B52+((B52*0.26)/12))-((B52*0.39)/12),(B52+((B52*0.26)/12))-25) -> 2862.34542 | C53: =IF(((C52*0.39)/12)>25,(C52+((C52*0.26)/12))-((C52*0.39)/12),(C52+((C52*0.26)/12))-25) -> 122.963171
A54: 2015-05-08 | B54: =IF(((B53*0.39)/12)>25,(B53+((B53*0.26)/12))-((B53*0.39)/12),(B53+((B53*0.26)/12))-25) -> 2831.336678 | C54: =IF(((C53*0.39)/12)>25,(C53+((C53*0.26)/12))-((C53*0.39)/12),(C53+((C53*0.26)/12))-25) -> 100.627373
A55: 2015-06-08 | B55: =IF(((B54*0.39)/12)>25,(B54+((B54*0.26)/12))-((B54*0.39)/12),(B54+((B54*0.26)/12))-25) -> 2800.663864 | C55: =IF(((C54*0.39)/12)>25,(C54+((C54*0.26)/12))-((C54*0.39)/12),(C54+((C54*0.26)/12))-25) -> 77.80763279
A56: 2015-07-08 | B56: =IF(((B55*0.39)/12)>25,(B55+((B55*0.26)/12))-((B55*0.39)/12),(B55+((B55*0.26)/12))-25) -> 2770.323339 | C56: =IF(((C55*0.39)/12)>25,(C55+((C55*0.26)/12))-((C55*0.39)/12),(C55+((C55*0.26)/12))-25) -> 54.49346483
A57: 2015-08-08 | B57: =IF(((B56*0.39)/12)>25,(B56+((B56*0.26)/12))-((B56*0.39)/12),(B56+((B56*0.26)/12))-25) -> 2740.311503 | C57: =IF(((C56*0.39)/12)>25,(C56+((C56*0.26)/12))-((C56*0.39)/12),(C56+((C56*0.26)/12))-25) -> 30.67415657
A58: 2015-09-08 | B58: =IF(((B57*0.39)/12)>25,(B57+((B57*0.26)/12))-((B57*0.39)/12),(B57+((B57*0.26)/12))-25) -> 2710.624795 | C58: =IF(((C57*0.39)/12)>25,(C57+((C57*0.26)/12))-((C57*0.39)/12),(C57+((C57*0.26)/12))-25) -> 6.338763296
A59: 2015-10-08 | B59: =IF(((B58*0.39)/12)>25,(B58+((B58*0.26)/12))-((B58*0.39)/12),(B58+((B58*0.26)/12))-25) -> 2681.259693 | C59: =IF(((C58*0.39)/12)>25,(C58+((C58*0.26)/12))-((C58*0.39)/12),(C58+((C58*0.26)/12))-25) -> -18.52389683
A60: 2015-11-08 | B60: =IF(((B59*0.39)/12)>25,(B59+((B59*0.26)/12))-((B59*0.39)/12),(B59+((B59*0.26)/12))-25) -> 2652.212713
A61: 2015-12-08 | B61: =IF(((B60*0.39)/12)>25,(B60+((B60*0.26)/12))-((B60*0.39)/12),(B60+((B60*0.26)/12))-25) -> 2623.480409
A62: 2016-01-08 | B62: =IF(((B61*0.39)/12)>25,(B61+((B61*0.26)/12))-((B61*0.39)/12),(B61+((B61*0.26)/12))-25) -> 2595.059371
A63: 2016-02-08 | B63: =IF(((B62*0.39)/12)>25,(B62+((B62*0.26)/12))-((B62*0.39)/12),(B62+((B62*0.26)/12))-25) -> 2566.946228
A64: 2016-03-08 | B64: =IF(((B63*0.39)/12)>25,(B63+((B63*0.26)/12))-((B63*0.39)/12),(B63+((B63*0.26)/12))-25) -> 2539.137644
A65: 2016-04-08 | B65: =IF(((B64*0.39)/12)>25,(B64+((B64*0.26)/12))-((B64*0.39)/12),(B64+((B64*0.26)/12))-25) -> 2511.630319
A66: 2016-05-08 | B66: =IF(((B65*0.39)/12)>25,(B65+((B65*0.26)/12))-((B65*0.39)/12),(B65+((B65*0.26)/12))-25) -> 2484.420991
A67: 2016-06-08 | B67: =IF(((B66*0.39)/12)>25,(B66+((B66*0.26)/12))-((B66*0.39)/12),(B66+((B66*0.26)/12))-25) -> 2457.50643
A68: 2016-07-08 | B68: =IF(((B67*0.39)/12)>25,(B67+((B67*0.26)/12))-((B67*0.39)/12),(B67+((B67*0.26)/12))-25) -> 2430.883444
A69: 2016-08-08 | B69: =IF(((B68*0.39)/12)>25,(B68+((B68*0.26)/12))-((B68*0.39)/12),(B68+((B68*0.26)/12))-25) -> 2404.548873
A70: 2016-09-08 | B70: =IF(((B69*0.39)/12)>25,(B69+((B69*0.26)/12))-((B69*0.39)/12),(B69+((B69*0.26)/12))-25) -> 2378.499593
A71: 2016-10-08 | B71: =IF(((B70*0.39)/12)>25,(B70+((B70*0.26)/12))-((B70*0.39)/12),(B70+((B70*0.26)/12))-25) -> 2352.732515
A72: 2016-11-08 | B72: =IF(((B71*0.39)/12)>25,(B71+((B71*0.26)/12))-((B71*0.39)/12),(B71+((B71*0.26)/12))-25) -> 2327.244579
A73: 2016-12-08 | B73: =IF(((B72*0.39)/12)>25,(B72+((B72*0.26)/12))-((B72*0.39)/12),(B72+((B72*0.26)/12))-25) -> 2302.032763
A74: 2017-01-08 | B74: =IF(((B73*0.39)/12)>25,(B73+((B73*0.26)/12))-((B73*0.39)/12),(B73+((B73*0.26)/12))-25) -> 2277.094074
A75: 2017-02-08 | B75: =IF(((B74*0.39)/12)>25,(B74+((B74*0.26)/12))-((B74*0.39)/12),(B74+((B74*0.26)/12))-25) -> 2252.425555
A76: 2017-03-08 | B76: =IF(((B75*0.39)/12)>25,(B75+((B75*0.26)/12))-((B75*0.39)/12),(B75+((B75*0.26)/12))-25) -> 2228.024278
A77: 2017-04-08 | B77: =IF(((B76*0.39)/12)>25,(B76+((B76*0.26)/12))-((B76*0.39)/12),(B76+((B76*0.26)/12))-25) -> 2203.887349
A78: 2017-05-08 | B78: =IF(((B77*0.39)/12)>25,(B77+((B77*0.26)/12))-((B77*0.39)/12),(B77+((B77*0.26)/12))-25) -> 2180.011902
A79: 2017-06-08 | B79: =IF(((B78*0.39)/12)>25,(B78+((B78*0.26)/12))-((B78*0.39)/12),(B78+((B78*0.26)/12))-25) -> 2156.395107
A80: 2017-07-08 | B80: =IF(((B79*0.39)/12)>25,(B79+((B79*0.26)/12))-((B79*0.39)/12),(B79+((B79*0.26)/12))-25) -> 2133.03416
A81: 2017-08-08 | B81: =IF(((B80*0.39)/12)>25,(B80+((B80*0.26)/12))-((B80*0.39)/12),(B80+((B80*0.26)/12))-25) -> 2109.92629
A82: 2017-09-08 | B82: =IF(((B81*0.39)/12)>25,(B81+((B81*0.26)/12))-((B81*0.39)/12),(B81+((B81*0.26)/12))-25) -> 2087.068755
A83: 2017-10-08 | B83: =IF(((B82*0.39)/12)>25,(B82+((B82*0.26)/12))-((B82*0.39)/12),(B82+((B82*0.26)/12))-25) -> 2064.458843
A84: 2017-11-08 | B84: =IF(((B83*0.39)/12)>25,(B83+((B83*0.26)/12))-((B83*0.39)/12),(B83+((B83*0.26)/12))-25) -> 2042.093873
A85: 2017-12-08 | B85: =IF(((B84*0.39)/12)>25,(B84+((B84*0.26)/12))-((B84*0.39)/12),(B84+((B84*0.26)/12))-25) -> 2019.971189
A86: 2018-01-08 | B86: =IF(((B85*0.39)/12)>25,(B85+((B85*0.26)/12))-((B85*0.39)/12),(B85+((B85*0.26)/12))-25) -> 1998.088168
A87: 2018-02-08 | B87: =IF(((B86*0.39)/12)>25,(B86+((B86*0.26)/12))-((B86*0.39)/12),(B86+((B86*0.26)/12))-25) -> 1976.442213
A88: 2018-03-08 | B88: =IF(((B87*0.39)/12)>25,(B87+((B87*0.26)/12))-((B87*0.39)/12),(B87+((B87*0.26)/12))-25) -> 1955.030755
A89: 2018-04-08 | B89: =IF(((B88*0.39)/12)>25,(B88+((B88*0.26)/12))-((B88*0.39)/12),(B88+((B88*0.26)/12))-25) -> 1933.851256
A90: 2018-05-08 | B90: =IF(((B89*0.39)/12)>25,(B89+((B89*0.26)/12))-((B89*0.39)/12),(B89+((B89*0.26)/12))-25) -> 1912.9012
A91: 2018-06-08 | B91: =IF(((B90*0.39)/12)>25,(B90+((B90*0.26)/12))-((B90*0.39)/12),(B90+((B90*0.26)/12))-25) -> 1892.178104
A92: 2018-07-08 | B92: =IF(((B91*0.39)/12)>25,(B91+((B91*0.26)/12))-((B91*0.39)/12),(B91+((B91*0.26)/12))-25) -> 1871.679508
A93: 2018-08-08 | B93: =IF(((B92*0.39)/12)>25,(B92+((B92*0.26)/12))-((B92*0.39)/12),(B92+((B92*0.26)/12))-25) -> 1851.40298
A94: 2018-09-08 | B94: =IF(((B93*0.39)/12)>25,(B93+((B93*0.26)/12))-((B93*0.39)/12),(B93+((B93*0.26)/12))-25) -> 1831.346114
A95: 2018-10-08 | B95: =IF(((B94*0.39)/12)>25,(B94+((B94*0.26)/12))-((B94*0.39)/12),(B94+((B94*0.26)/12))-25) -> 1811.506531
A96: 2018-11-08 | B96: =IF(((B95*0.39)/12)>25,(B95+((B95*0.26)/12))-((B95*0.39)/12),(B95+((B95*0.26)/12))-25) -> 1791.881877
A97: 2018-12-08 | B97: =IF(((B96*0.39)/12)>25,(B96+((B96*0.26)/12))-((B96*0.39)/12),(B96+((B96*0.26)/12))-25) -> 1772.469824
A98: 2019-01-08 | B98: =IF(((B97*0.39)/12)>25,(B97+((B97*0.26)/12))-((B97*0.39)/12),(B97+((B97*0.26)/12))-25) -> 1753.268067
A99: 2019-02-08 | B99: =IF(((B98*0.39)/12)>25,(B98+((B98*0.26)/12))-((B98*0.39)/12),(B98+((B98*0.26)/12))-25) -> 1734.27433
A100: 2019-03-08 | B100: =IF(((B99*0.39)/12)>25,(B99+((B99*0.26)/12))-((B99*0.39)/12),(B99+((B99*0.26)/12))-25) -> 1715.486358
A101: 2019-04-08 | B101: =IF(((B100*0.39)/12)>25,(B100+((B100*0.26)/12))-((B100*0.39)/12),(B100+((B100*0.26)/12))-25) -> 1696.901922
A102: 2019-05-08 | B102: =IF(((B101*0.39)/12)>25,(B101+((B101*0.26)/12))-((B101*0.39)/12),(B101+((B101*0.26)/12))-25) -> 1678.518818
A103: 2019-06-08 | B103: =IF(((B102*0.39)/12)>25,(B102+((B102*0.26)/12))-((B102*0.39)/12),(B102+((B102*0.26)/12))-25) -> 1660.334864
A104: 2019-07-08 | B104: =IF(((B103*0.39)/12)>25,(B103+((B103*0.26)/12))-((B103*0.39)/12),(B103+((B103*0.26)/12))-25) -> 1642.347903
A105: 2019-08-08 | B105: =IF(((B104*0.39)/12)>25,(B104+((B104*0.26)/12))-((B104*0.39)/12),(B104+((B104*0.26)/12))-25) -> 1624.555801
A106: 2019-09-08 | B106: =IF(((B105*0.39)/12)>25,(B105+((B105*0.26)/12))-((B105*0.39)/12),(B105+((B105*0.26)/12))-25) -> 1606.956446
A107: 2019-10-08 | B107: =IF(((B106*0.39)/12)>25,(B106+((B106*0.26)/12))-((B106*0.39)/12),(B106+((B106*0.26)/12))-25) -> 1589.547752
A108: 2019-11-08 | B108: =IF(((B107*0.39)/12)>25,(B107+((B107*0.26)/12))-((B107*0.39)/12),(B107+((B107*0.26)/12))-25) -> 1572.327651
A109: 2019-12-08 | B109: =IF(((B108*0.39)/12)>25,(B108+((B108*0.26)/12))-((B108*0.39)/12),(B108+((B108*0.26)/12))-25) -> 1555.294101
A110: 2020-01-08 | B110: =IF(((B109*0.39)/12)>25,(B109+((B109*0.26)/12))-((B109*0.39)/12),(B109+((B109*0.26)/12))-25) -> 1538.445082
A111: 2020-02-08 | B111: =IF(((B110*0.39)/12)>25,(B110+((B110*0.26)/12))-((B110*0.39)/12),(B110+((B110*0.26)/12))-25) -> 1521.778594
A112: 2020-03-08 | B112: =IF(((B111*0.39)/12)>25,(B111+((B111*0.26)/12))-((B111*0.39)/12),(B111+((B111*0.26)/12))-25) -> 1505.292659
A113: 2020-04-08 | B113: =IF(((B112*0.39)/12)>25,(B112+((B112*0.26)/12))-((B112*0.39)/12),(B112+((B112*0.26)/12))-25) -> 1488.985322
A114: 2020-05-08 | B114: =IF(((B113*0.39)/12)>25,(B113+((B113*0.26)/12))-((B113*0.39)/12),(B113+((B113*0.26)/12))-25) -> 1472.854647
A115: 2020-06-08 | B115: =IF(((B114*0.39)/12)>25,(B114+((B114*0.26)/12))-((B114*0.39)/12),(B114+((B114*0.26)/12))-25) -> 1456.898722
A116: 2020-07-08 | B116: =IF(((B115*0.39)/12)>25,(B115+((B115*0.26)/12))-((B115*0.39)/12),(B115+((B115*0.26)/12))-25) -> 1441.115653
A117: 2020-08-08 | B117: =IF(((B116*0.39)/12)>25,(B116+((B116*0.26)/12))-((B116*0.39)/12),(B116+((B116*0.26)/12))-25) -> 1425.503566
A118: 2020-09-08 | B118: =IF(((B117*0.39)/12)>25,(B117+((B117*0.26)/12))-((B117*0.39)/12),(B117+((B117*0.26)/12))-25) -> 1410.060611
A119: 2020-10-08 | B119: =IF(((B118*0.39)/12)>25,(B118+((B118*0.26)/12))-((B118*0.39)/12),(B118+((B118*0.26)/12))-25) -> 1394.784954
A120: 2020-11-08 | B120: =IF(((B119*0.39)/12)>25,(B119+((B119*0.26)/12))-((B119*0.39)/12),(B119+((B119*0.26)/12))-25) -> 1379.674784
A121: 2020-12-08 | B121: =IF(((B120*0.39)/12)>25,(B120+((B120*0.26)/12))-((B120*0.39)/12),(B120+((B120*0.26)/12))-25) -> 1364.728307
A122: 2021-01-08 | B122: =IF(((B121*0.39)/12)>25,(B121+((B121*0.26)/12))-((B121*0.39)/12),(B121+((B121*0.26)/12))-25) -> 1349.943751
A123: 2021-02-08 | B123: =IF(((B122*0.39)/12)>25,(B122+((B122*0.26)/12))-((B122*0.39)/12),(B122+((B122*0.26)/12))-25) -> 1335.31936
A124: 2021-03-08 | B124: =IF(((B123*0.39)/12)>25,(B123+((B123*0.26)/12))-((B123*0.39)/12),(B123+((B123*0.26)/12))-25) -> 1320.8534
A125: 2021-04-08 | B125: =IF(((B124*0.39)/12)>25,(B124+((B124*0.26)/12))-((B124*0.39)/12),(B124+((B124*0.26)/12))-25) -> 1306.544155
A126: 2021-05-08 | B126: =IF(((B125*0.39)/12)>25,(B125+((B125*0.26)/12))-((B125*0.39)/12),(B125+((B125*0.26)/12))-25) -> 1292.389927
A127: 2021-06-08 | B127: =IF(((B126*0.39)/12)>25,(B126+((B126*0.26)/12))-((B126*0.39)/12),(B126+((B126*0.26)/12))-25) -> 1278.389036
A128: 2021-07-08 | B128: =IF(((B127*0.39)/12)>25,(B127+((B127*0.26)/12))-((B127*0.39)/12),(B127+((B127*0.26)/12))-25) -> 1264.539821
A129: 2021-08-08 | B129: =IF(((B128*0.39)/12)>25,(B128+((B128*0.26)/12))-((B128*0.39)/12),(B128+((B128*0.26)/12))-25) -> 1250.84064
A130: 2021-09-08 | B130: =IF(((B129*0.39)/12)>25,(B129+((B129*0.26)/12))-((B129*0.39)/12),(B129+((B129*0.26)/12))-25) -> 1237.289866
A131: 2021-10-08 | B131: =IF(((B130*0.39)/12)>25,(B130+((B130*0.26)/12))-((B130*0.39)/12),(B130+((B130*0.26)/12))-25) -> 1223.885893
A132: 2021-11-08 | B132: =IF(((B131*0.39)/12)>25,(B131+((B131*0.26)/12))-((B131*0.39)/12),(B131+((B131*0.26)/12))-25) -> 1210.627129
A133: 2021-12-08 | B133: =IF(((B132*0.39)/12)>25,(B132+((B132*0.26)/12))-((B132*0.39)/12),(B132+((B132*0.26)/12))-25) -> 1197.512002
A134: 2022-01-08 | B134: =IF(((B133*0.39)/12)>25,(B133+((B133*0.26)/12))-((B133*0.39)/12),(B133+((B133*0.26)/12))-25) -> 1184.538955
A135: 2022-02-08 | B135: =IF(((B134*0.39)/12)>25,(B134+((B134*0.26)/12))-((B134*0.39)/12),(B134+((B134*0.26)/12))-25) -> 1171.70645
A136: 2022-03-08 | B136: =IF(((B135*0.39)/12)>25,(B135+((B135*0.26)/12))-((B135*0.39)/12),(B135+((B135*0.26)/12))-25) -> 1159.012963
A137: 2022-04-08 | B137: =IF(((B136*0.39)/12)>25,(B136+((B136*0.26)/12))-((B136*0.39)/12),(B136+((B136*0.26)/12))-25) -> 1146.456989
A138: 2022-05-08 | B138: =IF(((B137*0.39)/12)>25,(B137+((B137*0.26)/12))-((B137*0.39)/12),(B137+((B137*0.26)/12))-25) -> 1134.037039
A139: 2022-06-08 | B139: =IF(((B138*0.39)/12)>25,(B138+((B138*0.26)/12))-((B138*0.39)/12),(B138+((B138*0.26)/12))-25) -> 1121.751637
A140: 2022-07-08 | B140: =IF(((B139*0.39)/12)>25,(B139+((B139*0.26)/12))-((B139*0.39)/12),(B139+((B139*0.26)/12))-25) -> 1109.599328
A141: 2022-08-08 | B141: =IF(((B140*0.39)/12)>25,(B140+((B140*0.26)/12))-((B140*0.39)/12),(B140+((B140*0.26)/12))-25) -> 1097.578669
A142: 2022-09-08 | B142: =IF(((B141*0.39)/12)>25,(B141+((B141*0.26)/12))-((B141*0.39)/12),(B141+((B141*0.26)/12))-25) -> 1085.688233
A143: 2022-10-08 | B143: =IF(((B142*0.39)/12)>25,(B142+((B142*0.26)/12))-((B142*0.39)/12),(B142+((B142*0.26)/12))-25) -> 1073.92661
A144: 2022-11-08 | B144: =IF(((B143*0.39)/12)>25,(B143+((B143*0.26)/12))-((B143*0.39)/12),(B143+((B143*0.26)/12))-25) -> 1062.292405
A145: 2022-12-08 | B145: =IF(((B144*0.39)/12)>25,(B144+((B144*0.26)/12))-((B144*0.39)/12),(B144+((B144*0.26)/12))-25) -> 1050.784238
A146: 2023-01-08 | B146: =IF(((B145*0.39)/12)>25,(B145+((B145*0.26)/12))-((B145*0.39)/12),(B145+((B145*0.26)/12))-25) -> 1039.400742
A147: 2023-02-08 | B147: =IF(((B146*0.39)/12)>25,(B146+((B146*0.26)/12))-((B146*0.39)/12),(B146+((B146*0.26)/12))-25) -> 1028.140567
A148: 2023-03-08 | B148: =IF(((B147*0.39)/12)>25,(B147+((B147*0.26)/12))-((B147*0.39)/12),(B147+((B147*0.26)/12))-25) -> 1017.002378
A149: 2023-04-08 | B149: =IF(((B148*0.39)/12)>25,(B148+((B148*0.26)/12))-((B148*0.39)/12),(B148+((B148*0.26)/12))-25) -> 1005.984852
A150: 2023-05-08 | B150: =IF(((B149*0.39)/12)>25,(B149+((B149*0.26)/12))-((B149*0.39)/12),(B149+((B149*0.26)/12))-25) -> 995.0866827
A151: 2023-06-08 | B151: =IF(((B150*0.39)/12)>25,(B150+((B150*0.26)/12))-((B150*0.39)/12),(B150+((B150*0.26)/12))-25) -> 984.3065769
A152: 2023-07-08 | B152: =IF(((B151*0.39)/12)>25,(B151+((B151*0.26)/12))-((B151*0.39)/12),(B151+((B151*0.26)/12))-25) -> 973.6432557
A153: 2023-08-08 | B153: =IF(((B152*0.39)/12)>25,(B152+((B152*0.26)/12))-((B152*0.39)/12),(B152+((B152*0.26)/12))-25) -> 963.0954538
A154: 2023-09-08 | B154: =IF(((B153*0.39)/12)>25,(B153+((B153*0.26)/12))-((B153*0.39)/12),(B153+((B153*0.26)/12))-25) -> 952.6619197
A155: 2023-10-08 | B155: =IF(((B154*0.39)/12)>25,(B154+((B154*0.26)/12))-((B154*0.39)/12),(B154+((B154*0.26)/12))-25) -> 942.3414155
A156: 2023-11-08 | B156: =IF(((B155*0.39)/12)>25,(B155+((B155*0.26)/12))-((B155*0.39)/12),(B155+((B155*0.26)/12))-25) -> 932.1327169
A157: 2023-12-08 | B157: =IF(((B156*0.39)/12)>25,(B156+((B156*0.26)/12))-((B156*0.39)/12),(B156+((B156*0.26)/12))-25) -> 922.0346124
A158: 2024-01-08 | B158: =IF(((B157*0.39)/12)>25,(B157+((B157*0.26)/12))-((B157*0.39)/12),(B157+((B157*0.26)/12))-25) -> 912.0459041
A159: 2024-02-08 | B159: =IF(((B158*0.39)/12)>25,(B158+((B158*0.26)/12))-((B158*0.39)/12),(B158+((B158*0.26)/12))-25) -> 902.1654068
A160: 2024-03-08 | B160: =IF(((B159*0.39)/12)>25,(B159+((B159*0.26)/12))-((B159*0.39)/12),(B159+((B159*0.26)/12))-25) -> 892.3919483
A161: 2024-04-08 | B161: =IF(((B160*0.39)/12)>25,(B160+((B160*0.26)/12))-((B160*0.39)/12),(B160+((B160*0.26)/12))-25) -> 882.7243688
A162: 2024-05-08 | B162: =IF(((B161*0.39)/12)>25,(B161+((B161*0.26)/12))-((B161*0.39)/12),(B161+((B161*0.26)/12))-25) -> 873.1615215
A163: 2024-06-08 | B163: =IF(((B162*0.39)/12)>25,(B162+((B162*0.26)/12))-((B162*0.39)/12),(B162+((B162*0.26)/12))-25) -> 863.7022717
A164: 2024-07-08 | B164: =IF(((B163*0.39)/12)>25,(B163+((B163*0.26)/12))-((B163*0.39)/12),(B163+((B163*0.26)/12))-25) -> 854.3454971
A165: 2024-08-08 | B165: =IF(((B164*0.39)/12)>25,(B164+((B164*0.26)/12))-((B164*0.39)/12),(B164+((B164*0.26)/12))-25) -> 845.0900875
A166: 2024-09-08 | B166: =IF(((B165*0.39)/12)>25,(B165+((B165*0.26)/12))-((B165*0.39)/12),(B165+((B165*0.26)/12))-25) -> 835.9349449
A167: 2024-10-08 | B167: =IF(((B166*0.39)/12)>25,(B166+((B166*0.26)/12))-((B166*0.39)/12),(B166+((B166*0.26)/12))-25) -> 826.878983
A168: 2024-11-08 | B168: =IF(((B167*0.39)/12)>25,(B167+((B167*0.26)/12))-((B167*0.39)/12),(B167+((B167*0.26)/12))-25) -> 817.9211274
A169: 2024-12-08 | B169: =IF(((B168*0.39)/12)>25,(B168+((B168*0.26)/12))-((B168*0.39)/12),(B168+((B168*0.26)/12))-25) -> 809.0603151
A170: 2025-01-08 | B170: =IF(((B169*0.39)/12)>25,(B169+((B169*0.26)/12))-((B169*0.39)/12),(B169+((B169*0.26)/12))-25) -> 800.2954951
A171: 2025-02-08 | B171: =IF(((B170*0.39)/12)>25,(B170+((B170*0.26)/12))-((B170*0.39)/12),(B170+((B170*0.26)/12))-25) -> 791.6256272
A172: 2025-03-08 | B172: =IF(((B171*0.39)/12)>25,(B171+((B171*0.26)/12))-((B171*0.39)/12),(B171+((B171*0.26)/12))-25) -> 783.0496829
A173: 2025-04-08 | B173: =IF(((B172*0.39)/12)>25,(B172+((B172*0.26)/12))-((B172*0.39)/12),(B172+((B172*0.26)/12))-25) -> 774.5666447
A174: 2025-05-08 | B174: =IF(((B173*0.39)/12)>25,(B173+((B173*0.26)/12))-((B173*0.39)/12),(B173+((B173*0.26)/12))-25) -> 766.175506
A175: 2025-06-08 | B175: =IF(((B174*0.39)/12)>25,(B174+((B174*0.26)/12))-((B174*0.39)/12),(B174+((B174*0.26)/12))-25) -> 757.7759753
A176: 2025-07-08 | B176: =IF(((B175*0.39)/12)>25,(B175+((B175*0.26)/12))-((B175*0.39)/12),(B175+((B175*0.26)/12))-25) -> 749.1944548
A177: 2025-08-08 | B177: =IF(((B176*0.39)/12)>25,(B176+((B176*0.26)/12))-((B176*0.39)/12),(B176+((B176*0.26)/12))-25) -> 740.4270013
A178: 2025-09-08 | B178: =IF(((B177*0.39)/12)>25,(B177+((B177*0.26)/12))-((B177*0.39)/12),(B177+((B177*0.26)/12))-25) -> 731.4695863
A179: 2025-10-08 | B179: =IF(((B178*0.39)/12)>25,(B178+((B178*0.26)/12))-((B178*0.39)/12),(B178+((B178*0.26)/12))-25) -> 722.318094
A180: 2025-11-08 | B180: =IF(((B179*0.39)/12)>25,(B179+((B179*0.26)/12))-((B179*0.39)/12),(B179+((B179*0.26)/12))-25) -> 712.9683194
A181: 2025-12-08 | B181: =IF(((B180*0.39)/12)>25,(B180+((B180*0.26)/12))-((B180*0.39)/12),(B180+((B180*0.26)/12))-25) -> 703.4159663
A182: 2026-01-08 | B182: =IF(((B181*0.39)/12)>25,(B181+((B181*0.26)/12))-((B181*0.39)/12),(B181+((B181*0.26)/12))-25) -> 693.6566456
A183: 2026-02-08 | B183: =IF(((B182*0.39)/12)>25,(B182+((B182*0.26)/12))-((B182*0.39)/12),(B182+((B182*0.26)/12))-25) -> 683.6858729
A184: 2026-03-08 | B184: =IF(((B183*0.39)/12)>25,(B183+((B183*0.26)/12))-((B183*0.39)/12),(B183+((B183*0.26)/12))-25) -> 673.4990668
A185: 2026-04-08 | B185: =IF(((B184*0.39)/12)>25,(B184+((B184*0.26)/12))-((B184*0.39)/12),(B184+((B184*0.26)/12))-25) -> 663.0915466
A186: 2026-05-08 | B186: =IF(((B185*0.39)/12)>25,(B185+((B185*0.26)/12))-((B185*0.39)/12),(B185+((B185*0.26)/12))-25) -> 652.4585301
A187: 2026-06-08 | B187: =IF(((B186*0.39)/12)>25,(B186+((B186*0.26)/12))-((B186*0.39)/12),(B186+((B186*0.26)/12))-25) -> 641.5951316
A188: 2026-07-08 | B188: =IF(((B187*0.39)/12)>25,(B187+((B187*0.26)/12))-((B187*0.39)/12),(B187+((B187*0.26)/12))-25) -> 630.4963595
A189: 2026-08-08 | B189: =IF(((B188*0.39)/12)>25,(B188+((B188*0.26)/12))-((B188*0.39)/12),(B188+((B188*0.26)/12))-25) -> 619.1571139
A190: 2026-09-08 | B190: =IF(((B189*0.39)/12)>25,(B189+((B189*0.26)/12))-((B189*0.39)/12),(B189+((B189*0.26)/12))-25) -> 607.5721847
A191: 2026-10-08 | B191: =IF(((B190*0.39)/12)>25,(B190+((B190*0.26)/12))-((B190*0.39)/12),(B190+((B190*0.26)/12))-25) -> 595.7362487
A192: 2026-11-08 | B192: =IF(((B191*0.39)/12)>25,(B191+((B191*0.26)/12))-((B191*0.39)/12),(B191+((B191*0.26)/12))-25) -> 583.6438674
A193: 2026-12-08 | B193: =IF(((B192*0.39)/12)>25,(B192+((B192*0.26)/12))-((B192*0.39)/12),(B192+((B192*0.26)/12))-25) -> 571.2894846
A194: 2027-01-08 | B194: =IF(((B193*0.39)/12)>25,(B193+((B193*0.26)/12))-((B193*0.39)/12),(B193+((B193*0.26)/12))-25) -> 558.6674234
A195: 2027-02-08 | B195: =IF(((B194*0.39)/12)>25,(B194+((B194*0.26)/12))-((B194*0.39)/12),(B194+((B194*0.26)/12))-25) -> 545.7718842
A196: 2027-03-08 | B196: =IF(((B195*0.39)/12)>25,(B195+((B195*0.26)/12))-((B195*0.39)/12),(B195+((B195*0.26)/12))-25) -> 532.5969417
A197: 2027-04-08 | B197: =IF(((B196*0.39)/12)>25,(B196+((B196*0.26)/12))-((B196*0.39)/12),(B196+((B196*0.26)/12))-25) -> 519.1365421
A198: 2027-05-08 | B198: =IF(((B197*0.39)/12)>25,(B197+((B197*0.26)/12))-((B197*0.39)/12),(B197+((B197*0.26)/12))-25) -> 505.3845006
A199: 2027-06-08 | B199: =IF(((B198*0.39)/12)>25,(B198+((B198*0.26)/12))-((B198*0.39)/12),(B198+((B198*0.26)/12))-25) -> 491.3344981
A200: 2027-07-08 | B200: =IF(((B199*0.39)/12)>25,(B199+((B199*0.26)/12))-((B199*0.39)/12),(B199+((B199*0.26)/12))-25) -> 476.9800789
A201: 2027-08-08 | B201: =IF(((B200*0.39)/12)>25,(B200+((B200*0.26)/12))-((B200*0.39)/12),(B200+((B200*0.26)/12))-25) -> 462.3146472
... 560 more rows

Sheet Sheet3
C5: 4500
B13: =IF(((C5*0.39)/12)>25,(C5+((C5*0.26)/12))-((C5*0.39)/12),(C5+((C5*0.26)/12))-25) -> 4451.25
B14: =IF(((B13*0.39)/12)>25,(B13+((B13*0.26)/12))-((B13*0.39)/12),(B13+((B13*0.26)/12))-25) -> 4403.028125
B15: 4355.328654
B16: 4308.145927
B17: 4261.474346
B18: 4215.308374
B19: 4169.642533
B20: 4124.471405
B21: 4079.789632
B22: 4035.591911
B23: 3991.872999
B24: 3948.627708
B25: 3905.850908
B26: 3863.537523
B27: 3821.682533
B28: 3780.280972
B29: 3739.327928
B30: 3698.818542
B31: 3658.748008
B32: 3619.111571
B33: 3579.904529
B34: 3541.12223
B35: 3502.760073
B36: 3464.813505
B37: 3427.278026
B38: 3390.14918
B39: 3353.422564
B40: 3317.09382
B41: 3281.158637
B42: 3245.612752
B43: 3210.451947
B44: 3175.672051
B45: 3141.268937
B46: 3107.238523
B47: 3073.576773
B48: 3040.279691
B49: 3007.343328
B50: 2974.763775
B51: 2942.537167
B52: 2910.659681
B53: 2879.127535
B54: 2847.936987
B55: 2817.084336
B56: 2786.565922
B57: 2756.378125
B58: 2726.517362
B59: 2696.98009
B60: 2667.762806
B61: 2638.862042
B62: 2610.27437
B63: 2581.996398
B64: 2554.02477
B65: 2526.356168
B66: 2498.98731
B67: 2471.914947
B68: 2445.135869
B69: 2418.646897
B70: 2392.444889
B71: 2366.526736
B72: 2340.889363
B73: 2315.529728
B74: 2290.444823
B75: 2265.631671
B76: 2241.087327
B77: 2216.808881
B78: =IF(((B77*0.39)/12)>25,(B77+((B77*0.26)/12))-((B77*0.39)/12),(B77+((B77*0.26)/12))-25) -> 2192.793452
B79: 2169.038189
B80: 2145.540276
B81: 2122.296923
B82: 2099.305373
B83: 2076.562898
B84: 2054.0668
B85: 2031.814409
B86: 2009.803087
B87: 1988.03022
B88: 1966.493226
B89: 1945.189549
B90: 1924.116662
B91: 1903.272065
B92: 1882.653285
B93: 1862.257874
B94: 1842.083414
B95: 1822.12751
B96: 1802.387795
B97: 1782.861928
B98: 1763.54759
B99: 1744.442491
B100: 1725.544364
B101: 1706.850967
B102: 1688.360081
B103: 1670.069514
B104: 1651.977094
B105: 1634.080676
B106: 1616.378135
B107: 1598.867372
B108: 1581.546309
B109: 1564.41289
B110: 1547.465084
B111: 1530.700879
B112: 1514.118286
B113: 1497.715338
B114: 1481.490088
B115: 1465.440612
B116: 1449.565006
B117: 1433.861385
B118: 1418.327887
B119: 1402.962668
B120: 1387.763906
B121: 1372.729797
B122: 1357.858557
B123: 1343.148423
B124: 1328.597648
B125: 1314.204507
B126: 1299.967292
B127: 1285.884313
B128: 1271.953899
B129: 1258.174399
B130: 1244.544176
B131: 1231.061614
B132: 1217.725113
B133: 1204.533091
B134: 1191.483983
B135: 1178.57624
B136: 1165.80833
B137: 1153.17874
B138: 1140.68597
B139: 1128.328539
B140: 1116.10498
B141: 1104.013843
B142: =IF(((B141*0.39)/12)>25,(B141+((B141*0.26)/12))-((B141*0.39)/12),(B141+((B141*0.26)/12))-25) -> 1092.053693
B143: 1080.223111
B144: 1068.520694
B145: 1056.945053
B146: 1045.494815
B147: 1034.168621
B148: 1022.965128
B149: 1011.883006
B150: 1000.92094
B151: 990.0776294
B152: 979.3517884
B153: 968.7421441
B154: 958.2474375
B155: 947.8664236
B156: 937.5978707
B157: 927.4405604
B158: 917.3932877
B159: 907.4548604
B160: 897.6240994
B161: 887.8998383
B162: 878.2809234
B163: 868.7662134
B164: 859.3545794
B165: 850.0449048
B166: 840.836085
B167: 831.7270274
B168: 822.7166513
B169: 813.8038876
B170: 804.9876788
B171: 796.2669789
B172: 787.6407533
B173: 779.1079785
B174: 770.6676421
B175: 762.3187426
B176: 753.8356487
B177: 745.1687544
B178: 736.3140774
B179: 727.2675491
B180: 718.0250127
B181: 708.5822213
B182: 698.9348361
B183: 689.0784242
B184: 679.0084567
B185: 668.7203066
B186: 658.2092466
B187: 647.470447
B188: 636.4989733
B189: 625.2897844
B190: 613.8377297
B191: 602.1375472
B192: 590.1838607
B193: 577.9711777
B194: 565.4938866
B195: 552.7462541
B196: 539.7224229
B197: 526.4164088
B198: 512.8220976
B199: 498.9332431
B200: 484.7434633
B201: 470.2462384
B202: 455.4349069
B203: 440.3026632
B204: 424.8425542
B205: 409.0474762
B206: =IF(((B205*0.39)/12)>25,(B205+((B205*0.26)/12))-((B205*0.39)/12),(B205+((B205*0.26)/12))-25) -> 392.9101715
B207: 376.4232253
B208: 359.5790618
B209: 342.3699415
B210: 324.7879569
B211: 306.8250293
... 15 more rows
